bitfinex-derivatives/quotes_ETHF0:USTF0_20241104
["timestamp","ask_amount","ask_price","bid_price","bid_amount"]
[1730749878974,0.4118,2429.9,2429.8,1.48673347]
[1730749879181,0.4118,2429.9,2429.8,1.55731347]
[1730749879372,0.4118,2429.9,2429.8,1.96913347]
[1730749879573,41.2118,2429.9,2429.8,1.07491347]
[1730749879766,45.327,2429.9,2429.8,1.07491347]
[1730749880168,45.327,2429.9,2429.5,5.20248451]
[1730749880169,0.41185,2429.6,2429.5,5.20248451]
[1730749880379,3.61965,2429.6,2429.5,4.79062451]
[1730749880576,3.61965,2429.6,2429.5,5.20249451]
[1730749881776,3.61965,2429.6,2429.5,2.56169694]
[1730749881976,3.61965,2429.6,2429.5,0.41187]
[1730749883984,0.41189,2429.5,2429.4,0.41187]
[1730749885280,3.2078,2429.6,2429.3,0.4824]
[1730749885482,3.2078,2429.6,2429.5,0.41187]
[1730749885786,3.61965,2429.6,2429.5,0.41187]
[1730749888786,3.61965,2429.6,2429.3,0.4824]
[1730749888787,0.41189,2429.5,2429.4,0.41188]
[1730749889179,0.41189,2429.4,2429.3,0.89429]
[1730749889382,0.9264,2429.4,2429.3,0.89429]
[1730749890084,1.33829,2429.4,2429.3,0.89429]
[1730749890486,1.33829,2429.4,2429.3,0.41189]
[1730749891373,0.41192,2429.3,2429.2,0.4119]
[1730749891577,0.91502,2429.3,2429.2,0.4119]
[1730749894291,0.5031,2429.3,2429.1,0.9821]
[1730749894485,0.41192,2429.2,2429.1,0.89103]
[1730749894887,0.41192,2429.2,2429.1,0.41193]
[1730749897188,0.41199,2428.9,2428.8,0.41198]
[1730749897390,3.61979,2428.9,2428.8,0.41198]
[1730749897784,44.41979,2428.9,2428.8,0.41198]
[1730749898284,44.90699,2428.9,2428.8,0.41198]
[1730749900189,1.02981,2429.2,2429.1,0.41194]
[1730749900190,3.2078,2429.2,2429.1,0.41194]
[1730749900491,3.61973,2429.2,2429.1,0.41194]
[1730749900790,3.2078,2429.2,2429.1,0.41194]
[1730749900990,3.61972,2429.2,2429.1,0.41194]
[1730749901294,44.41972,2429.2,2429.1,0.41194]
[1730749901594,3.61972,2429.2,2429.1,0.89934]
[1730749901789,3.2078,2429.2,2429.1,0.89934]
[1730749903087,3.2078,2429.2,2429.1,5.01614]
[1730749903895,0.4119,2429.4,2429.1,4.6042]
[1730749904088,0.4119,2429.4,2429.3,0.4119]
[1730749904294,3.6197,2429.4,2429.3,0.4119]
[1730749905987,3.2078,2429.4,2429.3,0.4119]
[1730749907292,3.61969,2429.4,2429.3,0.4119]
[1730749907989,0.41192,2429.3,2429.2,0.41191]
[1730749909788,3.61972,2429.3,2429.2,0.41191]
[1730749909989,3.2078,2429.3,2429.2,4.52871]
[1730749910192,3.2078,2429.3,2429.2,0.41191]
[1730749910997,3.6197,2429.3,2429.2,0.41191]
[1730749911497,3.2078,2429.3,2429.2,0.41191]
[1730749911793,3.6197,2429.3,2429.2,0.41191]
[1730749912386,3.2078,2429.3,2429.2,0.41191]
[1730749913692,0.41191,2429.4,2429.3,0.41189]
[1730749914085,3.61971,2429.4,2429.3,0.41189]
[1730749915085,3.2078,2429.4,2429.3,0.41189]
[1730749916191,3.2078,2429.4,2429.3,4.52789]
[1730749916693,0.9834,2429.8,2429.3,7.3238]
[1730749916996,3.3038,2429.9,2429.8,0.41182]
[1730749917297,3.2078,2429.9,2429.8,0.41182]
[1730749917695,3.2078,2429.9,2429.8,3.30380326]
[1730749917897,3.2078,2429.9,2429.8,3.76530326]
[1730749918895,40.8,2430.0,2429.8,7.46868326]
[1730749919090,40.8,2430.0,2429.9,7.7348]
[1730749919392,0.4669,2430.3,2429.9,8.2251]
[1730749919697,0.87865,2430.3,2430.2,3.30373326]
[1730749920404,0.4669,2430.3,2430.2,3.30373326]
[1730749920607,0.41172,2430.4,2430.3,0.41173]
[1730749921098,2.54841582,2430.4,2430.3,0.41173]
[1730749921601,0.41172,2430.4,2430.3,0.41173]
[1730749922001,2.54841582,2430.4,2430.3,0.41173]
[1730749922501,0.41173,2430.3,2430.2,3.30372326]
[1730749922799,0.88333,2430.3,2430.2,3.30372326]
[1730749923001,0.88333,2430.3,2430.2,2.89198326]
[1730749923195,3.02859859,2430.3,2430.2,3.30373326]
[1730749923395,3.02859859,2430.3,2430.2,2.89198326]
[1730749923602,43.82859859,2430.3,2430.2,3.30373326]
[1730749927093,42.94526859,2430.3,2430.2,3.30373326]
[1730749927298,40.8,2430.3,2430.2,3.30373326]
[1730749927595,3.53517859,2430.5,2430.4,0.41172]
[1730749927799,3.12346859,2430.5,2430.2,2.89198326]
[1730749927998,43.35699859,2430.4,2430.3,0.41172]
[1730749928198,0.41173,2430.3,2430.2,3.30372326]
[1730749929007,0.41173,2430.3,2430.1,0.41175]
[1730749929212,0.503,2430.2,2430.0,2.89198326]
[1730749929408,1.37657,2430.1,2430.0,3.30375326]
[1730749929908,0.9648,2430.1,2430.0,3.30375326]
[1730749930506,1.37657,2430.1,2430.0,3.30375326]
[1730749931311,0.9648,2430.1,2430.0,3.30375326]
[1730749932512,0.4747,2430.1,2430.0,3.30375326]
[1730749937609,0.91476,2430.2,2430.1,0.41177]
[1730749938411,0.503,2430.2,2430.1,0.41177]
[1730749939119,0.91475,2430.2,2430.1,0.41177]
[1730749939514,0.503,2430.2,2430.1,0.41177]
[1730749939713,0.91475,2430.2,2430.1,0.41177]
[1730749940316,0.503,2430.2,2430.1,0.41177]
[1730749942116,0.4819,2430.3,2430.2,0.41175]
[1730749942317,0.9921,2430.3,2430.2,3.30373326]
[1730749942516,2.14526859,2430.5,2430.3,0.41173]
[1730749942821,0.41172,2430.5,2430.4,3.79280326]
[1730749943115,41.21172,2430.5,2430.4,3.79280326]
[1730749944318,41.21172,2430.5,2430.4,0.41172]
[1730749946022,41.21172,2430.5,2430.4,1.7462699]
[1730749946415,43.35698859,2430.5,2430.4,1.7462699]
[1730749946616,41.21172,2430.5,2430.4,1.7462699]
[1730749946819,43.35698859,2430.5,2430.4,1.7462699]
[1730749948319,43.35698859,2430.5,2430.4,1.3345499]
[1730749948522,43.35698859,2430.5,2430.4,1.7462699]
[1730749949028,43.35552126,2430.5,2430.4,1.7462699]
[1730749949725,41.21172,2430.5,2430.4,1.7462699]
[1730749949915,43.35584304,2430.5,2430.4,1.7462699]
[1730749950620,41.21172,2430.5,2430.4,1.7462699]
[1730749950819,43.35607073,2430.5,2430.4,1.7462699]
[1730749951825,42.94435073,2430.5,2430.4,1.7462699]
[1730749953624,40.8,2430.5,2430.4,1.7462699]
[1730749954429,40.8,2430.5,2430.4,3.0808198]
[1730749954930,40.8,2430.5,2430.4,1.7462699]
[1730749955136,5.35215073,2430.7,2430.4,6.7834998]
[1730749955324,5.76383073,2430.7,2430.6,0.41168]
[1730749955525,46.56383073,2430.7,2430.6,0.41168]
[1730749955727,46.15215073,2430.7,2430.6,0.88348]
[1730749956227,5.76382073,2430.7,2430.6,0.88348]
[1730749957431,5.35215073,2430.7,2430.6,0.88348]
[1730749958227,5.76382073,2430.7,2430.6,0.88348]
[1730749959233,3.61947,2430.7,2430.6,0.88348]
[1730749960235,6.29033977,2430.7,2430.6,0.88348]
[1730749961634,6.30544017,2430.7,2430.6,0.88348]
[1730749961833,3.61947,2430.7,2430.6,0.88348]
[1730749962533,6.30588484,2430.7,2430.6,0.88348]
[1730749962735,3.61947,2430.7,2430.6,0.88348]
[1730749964430,0.41167,2430.7,2430.6,0.88348]
[1730749969730,44.4756,2430.8,2430.6,0.4718]
[1730749969927,3.20504373,2431.0,2430.9,0.41163]
[1730749970145,2.68758387,2431.0,2430.9,3.0807298]
[1730749970432,0.9121,2431.2,2430.9,3.0807298]
[1730749970433,2.68758387,2431.1,2431.0,0.41162]
[1730749970638,44.39968387,2431.2,2431.1,0.4116]
[1730749970838,2.68758387,2431.2,2431.1,4.5252]
[1730749971031,1.37106,2431.4,2431.2,0.41158]
[1730749971032,2.68721212,2431.3,2431.2,0.41158]
[1730749971233,2.68721212,2431.3,2431.2,1.7461299]
[1730749972136,4.14021212,2431.4,2431.2,1.7461299]
[1730749972438,4.14021212,2431.4,2431.3,0.41156]
[1730749972439,4.55176212,2431.4,2431.3,0.41156]
[1730749973236,4.14021212,2431.4,2431.3,0.41156]
[1730749974139,1.453,2431.4,2431.3,0.41156]
[1730749974339,1.86455,2431.4,2431.3,0.41156]
[1730749975134,4.55176212,2431.4,2431.3,0.41156]
[1730749975337,4.14021212,2431.4,2431.2,1.3345499]
[1730749975527,4.14021212,2431.4,2430.9,0.4723]
[1730749975528,2.14739759,2431.3,2431.1,1.3345499]
[1730749975732,3.09879212,2431.2,2431.1,0.4116]
[1730749976036,3.09879212,2431.2,2431.1,1.3345499]
[1730749976339,43.89879212,2431.2,2431.1,1.3345499]
[1730749976639,48.01239212,2431.2,2431.1,1.3345499]
[1730749977339,48.01239212,2431.2,2431.1,1.7461499]
[1730749980234,43.89879212,2431.2,2431.1,1.7461499]
[1730749982238,43.89879212,2431.2,2431.1,1.3345499]
[1730749983645,41.21158,2431.2,2431.1,1.7461499]
[1730749984035,41.21158,2431.2,2431.1,1.3345499]
[1730749984734,43.89343626,2431.2,2431.1,1.3345499]
[1730749985329,41.21158,2431.2,2431.1,1.3345499]
[1730749987243,44.41938,2431.2,2431.1,1.3345499]
[1730749989048,0.4116,2431.1,2431.0,1.3345499]
[1730749989248,0.8736,2431.1,2431.0,1.3345499]
[1730749989448,0.41162,2431.0,2430.9,1.3345499]
[1730749989747,1.40502,2431.0,2430.9,1.3345499]
[1730749989944,4.08912245,2431.0,2430.9,1.3345499]
[1730749990249,1.40502,2431.0,2430.9,1.3345499]
[1730749993548,5.51862,2431.0,2430.9,1.3345499]
[1730749993848,8.73750127,2431.0,2430.9,1.3345499]
[1730749994443,8.32588127,2431.0,2430.7,1.3345499]
[1730749994645,3.61945,2430.8,2430.7,1.3345499]
[1730749995046,4.09395,2430.8,2430.7,1.3345499]
[1730749998244,0.41167,2430.7,2430.6,1.3345499]
[1730749999542,0.41167,2430.7,2430.6,1.7462299]
[1730750000349,2.14892145,2430.7,2430.6,8.6567499]
[1730750000550,2.68612541,2431.0,2430.6,6.4781399]
[1730750000755,2.68612541,2431.0,2430.9,1.7461799]
[1730750001158,2.68612541,2431.0,2430.9,5.8597799]
[1730750001353,2.68649688,2431.0,2430.9,5.4481499]
[1730750001558,2.68649688,2431.0,2430.9,5.8597799]
[1730750001756,0.4116,2431.1,2431.0,0.41162]
[1730750002158,3.09807543,2431.1,2431.0,0.41162]
[1730750002763,2.68647543,2431.1,2431.0,0.41162]
[1730750002963,3.21888127,2431.3,2430.9,1.3345499]
[1730750003160,0.41161,2431.1,2431.0,1.7461499]
[1730750003761,3.09784593,2431.1,2431.0,1.7461499]
[1730750003961,0.41161,2431.1,2431.0,1.7461499]
[1730750007565,3.09802508,2431.1,2431.0,1.7461499]
[1730750007977,0.41161,2431.1,2431.0,1.7461499]
[1730750008580,0.87531,2431.1,2431.0,1.7461499]
[1730750009876,1.84541,2431.1,2431.0,1.7461499]
[1730750014880,0.87791,2431.1,2431.0,1.7461499]
[1730750015078,6.42668127,2431.3,2431.2,0.41158]
[1730750015280,3.61936,2431.3,2431.2,1.7461299]
[1730750015485,3.61936,2431.3,2431.2,5.8589299]
[1730750015683,3.61936,2431.3,2431.2,2.2425299]
[1730750015891,3.61936,2431.3,2431.2,6.3553299]
[1730750016078,3.61936,2431.3,2431.2,2.2425299]
[1730750016278,0.41158,2431.2,2431.1,1.7461399]
[1730750016483,0.90738,2431.2,2431.1,1.7461399]
[1730750017388,0.90738,2431.2,2431.1,1.3345499]
[1730750017583,0.90738,2431.2,2431.1,1.7461499]
[1730750021480,0.41158,2431.2,2431.1,1.7461499]
[1730750024693,3.09885172,2431.2,2431.1,1.7461499]
[1730750025286,2.68727172,2431.2,2431.1,1.7461499]
[1730750025800,0.41157,2431.3,2431.2,0.41158]
[1730750025994,0.41157,2431.3,2431.2,1.7461299]
[1730750026395,3.09870738,2431.3,2431.2,1.7461299]
[1730750029096,3.18813738,2431.4,2431.3,0.41156]
[1730750029293,5.89847077,2431.5,2431.3,0.41156]
[1730750029488,5.89847077,2431.5,2431.4,1.7460999]
[1730750029699,5.48694077,2431.5,2431.4,1.7460999]
[1730750029901,5.89847077,2431.5,2431.4,1.7460999]
[1730750030092,5.48694077,2431.5,2431.4,1.7460999]
[1730750030293,3.19143738,2431.5,2431.4,1.7460999]
[1730750032200,3.60296738,2431.5,2431.4,1.7460999]
[1730750032693,0.91583,2431.5,2431.4,1.7460999]
[1730750035104,3.06406142,2431.5,2431.4,1.7460999]
[1730750035805,0.91583,2431.5,2431.4,1.7460999]
[1730750036100,3.0639513,2431.5,2431.4,1.7460999]
[1730750036303,0.91583,2431.5,2431.4,1.7460999]
[1730750037407,3.06385391,2431.5,2431.4,1.7460999]
[1730750037601,0.91583,2431.5,2431.4,1.7460999]
[1730750041306,3.60296738,2431.5,2431.4,1.7460999]
[1730750041514,0.91583,2431.5,2431.4,1.7460999]
[1730750042113,3.60296738,2431.5,2431.4,1.7460999]
[1730750043213,0.91583,2431.5,2431.4,1.7460999]
[1730750043516,3.60296738,2431.5,2431.4,1.7460999]
[1730750044217,3.19143738,2431.5,2431.4,1.7460999]
[1730750044420,0.91583,2431.5,2431.4,1.7460999]
[1730750044716,3.60296738,2431.5,2431.4,1.7460999]
[1730750049223,0.91583,2431.5,2431.4,1.7460999]
[1730750049424,3.60602276,2431.5,2431.4,1.7460999]
[1730750052021,3.60602276,2431.5,2431.4,1.3345499]
[1730750052226,0.91583,2431.5,2431.4,1.3345499]
[1730750052825,0.91583,2431.5,2431.4,1.7460999]
[1730750054729,3.60433838,2431.5,2431.4,1.7460999]
[1730750055024,0.5043,2431.5,2431.4,1.7460999]
[1730750055425,3.19324052,2431.5,2431.4,1.7460999]
[1730750055626,3.60477052,2431.5,2431.4,1.7460999]
[1730750056130,3.19324052,2431.5,2431.4,1.7460999]
[1730750060423,2.68894052,2431.5,2431.4,1.7460999]
[1730750060623,2.68894052,2431.5,2431.4,5.8588999]
[1730750060828,2.68894052,2431.6,2431.5,0.41153]
[1730750061031,2.68894052,2431.6,2431.5,1.7460799]
[1730750062020,2.68894052,2431.6,2431.5,10.4012298]
[1730750062224,0.4952,2432.0,2431.7,0.4115]
[1730750062431,0.4952,2432.0,2431.9,1.7460099]
[1730750062637,1.40505,2432.0,2431.9,1.3345499]
[1730750062827,0.4115,2431.7,2431.6,1.3345499]
[1730750063031,0.41151,2431.6,2431.5,1.3345499]
[1730750063224,0.90771,2431.6,2431.5,1.3345499]
[1730750063836,1.40611,2431.6,2431.5,1.3345499]
[1730750064133,1.40611,2431.6,2431.5,1.7460799]
[1730750064338,1.40611,2431.6,2431.5,1.3345499]
[1730750065234,1.40611,2431.6,2431.5,1.7460799]
[1730750066338,1.40611,2431.6,2431.5,1.3345499]
[1730750066533,1.40611,2431.6,2431.5,1.7460799]
[1730750071839,1.40611,2431.6,2431.5,1.3345499]
[1730750072237,4.62499127,2431.6,2431.5,1.3345499]
[1730750073631,4.62499127,2431.6,2431.5,1.7460799]
[1730750073826,4.62499127,2431.6,2431.5,1.3345499]
[1730750075436,1.40611,2431.6,2431.5,1.3345499]
[1730750075634,8.86276148,2431.6,2431.4,0.41154]
[1730750075833,4.14366293,2431.5,2431.4,0.41154]
[1730750076529,7.35146293,2431.5,2431.4,0.41154]
[1730750076734,4.14366293,2431.5,2431.4,0.41154]
[1730750077435,7.35146293,2431.5,2431.4,0.41154]
[1730750077831,4.14366293,2431.5,2431.4,0.41154]
[1730750080334,0.41155,2431.4,2431.3,1.7460999]
[1730750080540,11.05273293,2431.5,2431.1,1.7461299]
[1730750080740,0.41158,2431.2,2431.1,1.3345499]
[1730750080936,0.4116,2431.1,2431.0,1.3345499]
[1730750081138,41.6915,2431.1,2431.0,1.90060732]
[1730750081336,41.6915,2431.1,2431.0,2.4153007]
[1730750081542,41.6915,2431.1,2431.0,2.31222732]
[1730750081745,41.6915,2431.1,2431.0,2.41530697]
[1730750082039,0.41167,2430.8,2430.6,1.4305499]
[1730750082235,1.91437,2430.7,2430.6,1.7462299]
[1730750082437,1.91437,2430.7,2430.6,4.55590082]
[1730750082438,1.5027,2430.7,2430.6,4.55590082]
[1730750082633,1.0228,2430.7,2430.6,4.55590942]
[1730750082942,0.5095,2430.7,2430.6,4.55590942]
[1730750083141,2.68983512,2430.8,2430.7,0.41167]
[1730750083437,0.4799,2430.9,2430.8,0.41165]
[1730750083438,2.68983512,2430.9,2430.8,0.41165]
[1730750083643,4.12425512,2431.0,2430.8,2.41517718]
[1730750083943,4.12425512,2431.0,2430.9,1.49225728]
[1730750085035,4.12425512,2431.0,2430.9,1.49216988]
[1730750086139,3.71263512,2431.0,2430.9,1.49216988]
[1730750086337,4.12425512,2431.0,2430.9,1.49216988]
[1730750088844,4.12425512,2431.0,2430.9,1.49213404]
[1730750089036,4.12425512,2431.0,2430.9,0.97743552]
[1730750089235,4.12425512,2431.0,2430.9,0.41163]
[1730750091739,3.71263512,2431.0,2430.9,0.41163]
[1730750091945,2.68983512,2431.0,2430.9,0.41163]
[1730750092145,3.10145512,2431.0,2430.9,0.41163]
[1730750093634,2.68983512,2431.1,2430.8,1.8216499]
[1730750093838,3.10144512,2431.1,2431.0,1.7461699]
[1730750100245,3.10144512,2431.1,2431.0,1.3345499]
[1730750100649,0.41163,2431.0,2430.9,1.7461699]
[1730750101053,0.41167,2430.8,2430.7,0.41166]
[1730750101249,0.5176,2430.9,2430.6,4.5423499]
[1730750101449,0.92047,2430.7,2430.6,4.9540299]
[1730750102542,0.92047,2430.7,2430.6,1.3345499]
[1730750102761,0.92047,2430.7,2430.6,1.7462299]
[1730750102949,0.92047,2430.7,2430.6,1.3345499]
[1730750103248,0.41172,2430.4,2430.3,5.61898964]
[1730750103455,3.61952,2430.4,2430.3,1.07663974]
[1730750103652,4.52612,2430.4,2430.3,1.07663974]
[1730750103852,45.32612,2430.4,2430.3,1.07663974]
[1730750104255,41.21172,2430.4,2430.3,1.07663974]
[1730750104646,41.21172,2430.4,2430.3,2.41118964]
[1730750104848,41.21172,2430.4,2430.3,1.07663974]
[1730750105061,45.32612,2430.4,2430.3,1.07663974]
[1730750105259,48.53392,2430.4,2430.3,1.07663974]
[1730750106156,49.02262,2430.4,2430.3,1.07663974]
[1730750106758,49.02262,2430.4,2430.1,2.56504949]
[1730750106759,0.41175,2430.2,2430.1,0.41177]
[1730750107454,0.90455,2430.2,2430.1,0.41177]
[1730750107657,0.90455,2430.2,2430.1,1.7463199]
[1730750107957,0.4928,2430.2,2430.1,1.7463199]
[1730750108448,0.90455,2430.2,2430.1,1.7463199]
[1730750108651,0.4928,2430.2,2430.1,1.7463199]
[1730750108852,0.90455,2430.2,2430.1,1.7463199]
[1730750110959,0.4928,2430.2,2430.1,1.7463199]
[1730750112559,2.52647705,2430.3,2430.1,5.4497499]
[1730750112865,2.52647705,2430.3,2430.2,0.41175]
[1730750114756,2.11472705,2430.3,2430.2,0.41175]
[1730750115059,0.91953,2430.3,2430.2,0.41175]
[1730750116658,1.60692705,2430.4,2430.3,0.41173]
[1730750116863,1.60692705,2430.7,2430.6,0.41168]
[1730750117262,7.2113294,2430.8,2430.6,0.41168]
[1730750117263,3.2078,2430.8,2430.6,4.1144]
[1730750117462,3.2078,2430.8,2430.7,1.7462199]
[1730750117865,3.2078,2430.8,2430.7,5.8598199]
[1730750118564,4.81494038,2430.8,2430.7,5.8598199]
[1730750119165,5.22659038,2430.8,2430.7,0.41167]
[1730750119362,0.41167,2430.7,2430.6,1.7462299]
[1730750119553,4.81494038,2430.8,2430.5,1.3345499]
[1730750119759,0.41172,2430.4,2430.3,1.3345499]
[1730750119959,0.41172,2430.4,2430.0,1.323]
[1730750119960,7.05609028,2430.4,2430.0,2.5615499]
[1730750120169,0.41177,2430.1,2430.0,0.41177]
[1730750120661,0.41178,2430.1,2430.0,0.41177]
[1730750121363,2.01890038,2430.2,2430.1,0.41177]
[1730750125655,1.60714038,2430.2,2430.1,0.41177]
[1730750125868,2.01889038,2430.2,2430.1,0.41177]
[1730750130072,1.60714038,2430.2,2430.1,0.41177]
[1730750130270,1.60714038,2430.2,2430.1,4.52697]
[1730750130468,1.60714038,2430.4,2430.1,7.00722636]
[1730750130766,3.7858673,2430.6,2430.1,7.12924636]
[1730750130767,3.25015384,2430.6,2430.1,7.12924636]
[1730750131069,0.4923,2430.3,2430.2,0.41175]
[1730750131767,0.4923,2430.3,2430.2,0.88645]
[1730750132267,0.4923,2430.3,2430.2,0.41175]
[1730750134672,2.10098863,2430.3,2430.2,0.41175]
[1730750134972,0.4923,2430.3,2430.2,0.41175]
[1730750135372,1.60868863,2430.4,2430.3,0.41173]
[1730750136072,2.11988863,2430.5,2430.4,0.41172]
[1730750136270,2.66185384,2430.6,2430.2,1.02936]
[1730750136468,2.66185384,2430.6,2430.5,0.4117]
[1730750136875,3.07718889,2430.6,2430.5,0.4117]
[1730750137462,3.07764049,2430.6,2430.5,0.4117]
[1730750138368,0.93068,2430.6,2430.5,0.4117]
[1730750139070,3.07802388,2430.6,2430.5,0.4117]
[1730750139471,0.93068,2430.6,2430.5,0.4117]
[1730750140675,0.93068,2430.6,2430.5,4.5261]
[1730750140676,2.66722845,2430.6,2430.5,4.5261]
[1730750141567,0.519,2430.6,2430.5,4.5261]
[1730750141767,0.93068,2430.6,2430.5,4.5261]
[1730750142079,0.519,2430.6,2430.5,4.5261]
[1730750142270,2.66768103,2430.6,2430.5,4.5261]
[1730750142575,0.519,2430.6,2430.5,4.5261]
[1730750142769,0.93068,2430.6,2430.5,0.4117]
[1730750144181,3.6092473,2430.6,2430.5,0.4117]
[1730750145280,3.1975673,2430.6,2430.5,0.4117]
[1730750146183,3.6092473,2430.6,2430.5,0.4117]
[1730750146975,2.6785673,2430.6,2430.5,4.5261]
[1730750147170,3.6880673,2430.7,2430.6,0.41168]
[1730750147770,2.6785673,2430.8,2430.7,0.41167]
[1730750147973,2.14986098,2430.8,2430.7,5.59494717]
[1730750148180,2.14986098,2430.8,2430.7,5.18327821]
[1730750148481,2.64976098,2430.9,2430.8,0.41165]
[1730750148683,2.64976098,2430.9,2430.8,4.52525]
[1730750149184,2.64976098,2430.9,2430.8,0.41165]
[1730750150271,2.64976098,2430.9,2430.8,3.61945]
[1730750150476,2.64976098,2430.9,2430.8,7.73305]
[1730750150677,2.14986098,2431.0,2430.8,7.3214]
[1730750150877,2.14986098,2431.0,2430.9,0.41163]
[1730750151084,2.14986098,2431.0,2430.9,0.89883]
[1730750152178,2.56148098,2431.0,2430.9,0.89883]
[1730750152383,3.05377098,2431.1,2431.0,0.41162]
[1730750152576,0.90391,2431.1,2431.0,0.41162]
[1730750152877,2.64072728,2431.1,2431.0,0.41162]
[1730750153283,3.05232728,2431.1,2431.0,0.41162]
[1730750153981,2.64072728,2431.1,2431.0,0.41162]
[1730750154586,3.05232728,2431.1,2431.0,0.41162]
[1730750159188,0.41163,2430.9,2430.8,3.2078]
[1730750159489,2.55890675,2430.9,2430.8,3.2078]
[1730750159684,6.67250675,2430.9,2430.8,3.2078]
[1730750159884,6.67225918,2430.9,2430.8,3.2078]
[1730750160182,2.55865918,2430.9,2430.8,3.2078]
[1730750160383,2.55865918,2430.9,2430.8,3.61945]
[1730750161785,2.55865918,2430.9,2430.8,3.2078]
[1730750162488,0.41163,2430.9,2430.8,3.61945]
[1730750162693,2.55787395,2430.9,2430.8,3.61945]
[1730750163293,2.55787395,2430.9,2430.8,0.41165]
[1730750163588,0.41163,2430.9,2430.8,0.41165]
[1730750163787,0.41167,2430.8,2430.7,0.41165]
[1730750163986,3.57713578,2430.8,2430.7,0.41165]
[1730750164380,0.41167,2430.7,2430.6,3.61948]
[1730750164586,0.91607,2430.7,2430.6,3.61948]
[1730750165397,0.91607,2430.7,2430.6,0.41168]
[1730750165990,3.06213578,2430.7,2430.6,0.41168]
[1730750167590,0.41171,2430.6,2430.5,0.41169]
[1730750168593,3.06214578,2430.7,2430.6,0.41168]
[1730750168793,0.91608,2430.7,2430.6,0.41168]
[1730750169591,3.06214578,2430.7,2430.6,0.41168]
[1730750170299,0.91608,2430.7,2430.6,0.41168]
[1730750170593,2.65046578,2430.7,2430.6,0.41168]
[1730750170796,0.5044,2430.7,2430.6,0.41168]
[1730750171595,2.65046578,2430.7,2430.6,0.41168]
[1730750172194,0.5044,2430.7,2430.6,0.41168]
[1730750172403,2.65046578,2430.7,2430.6,0.41168]
[1730750172715,3.06213578,2430.7,2430.6,0.41168]
[1730750172999,0.5044,2430.7,2430.6,0.41168]
[1730750173303,2.65046578,2430.7,2430.6,0.41168]
[1730750173801,3.06213578,2430.7,2430.6,0.41168]
[1730750174288,2.65046578,2430.7,2430.6,0.41168]
[1730750174493,2.14606578,2430.7,2430.6,0.41168]
[1730750174692,2.14606578,2430.7,2430.6,0.94568]
[1730750175094,2.14606578,2430.7,2430.6,5.06008]
[1730750175492,2.14606578,2430.7,2430.6,8.26788]
[1730750175890,2.14606578,2430.7,2430.6,9.60225234]
[1730750176092,2.64256578,2430.8,2430.6,9.19057234]
[1730750176403,3.1753673,2431.0,2430.7,4.1144]
[1730750176606,2.14801581,2430.9,2430.8,0.41165]
[1730750176898,3.1753673,2431.0,2430.9,0.41163]
[1730750177799,0.9892,2431.1,2431.0,0.41162]
[1730750177998,0.9892,2431.1,2431.0,4.52522]
[1730750178801,2.68545956,2431.1,2431.0,4.52522]
[1730750179004,2.14846807,2431.1,2431.0,4.52522]
[1730750179301,5.35626807,2431.2,2431.1,0.4116]
[1730750179513,2.14846807,2431.2,2431.1,5.85957234]
[1730750179809,2.14846807,2431.2,2431.1,6.3742093]
[1730750180097,2.14846807,2431.3,2431.2,0.41158]
[1730750180298,2.68545956,2431.4,2431.3,0.41156]
[1730750180299,2.14846807,2431.4,2431.3,0.41156]
[1730750180504,2.14846807,2431.4,2431.3,5.04846]
[1730750181298,2.14846807,2431.4,2431.3,8.45805328]
[1730750181607,0.4941,2431.5,2431.4,0.41155]
[1730750182400,2.64132915,2431.5,2431.4,0.41155]
[1730750183406,2.14722915,2431.5,2431.4,0.41155]
[1730750187412,2.55875915,2431.5,2431.4,0.41155]
[1730750188517,2.14722915,2431.5,2431.4,0.41155]
[1730750189609,0.41156,2431.3,2431.2,3.2078]
[1730750190014,2.55878915,2431.3,2431.2,3.2078]
[1730750190314,44.39938915,2431.3,2431.2,3.2078]
[1730750191010,42.25216,2431.3,2431.2,3.2078]
[1730750191213,44.39773662,2431.3,2431.2,3.61938]
[1730750191414,42.25216,2431.3,2431.2,3.61938]
[1730750191605,44.39786105,2431.3,2431.2,3.61938]
[1730750192312,43.98630105,2431.3,2430.9,5.14494328]
[1730750192521,2.55731105,2431.2,2431.1,0.41159]
[1730750194809,2.14570105,2431.2,2430.8,3.2078]
[1730750195005,0.41163,2431.0,2430.9,0.41161]
[1730750195417,0.92523,2431.0,2430.9,0.41161]
[1730750197214,0.92522,2431.0,2430.9,0.41161]
[1730750197515,0.5136,2431.0,2430.9,0.41161]
[1730750198118,3.07092105,2431.0,2430.9,0.41161]
[1730750199012,2.65930105,2431.0,2430.9,0.41161]
[1730750199419,0.5136,2431.0,2430.9,0.41161]
[1730750199716,2.65930105,2431.0,2430.9,0.41161]
[1730750200314,0.5136,2431.0,2430.9,0.41161]
[1730750200522,2.65930105,2431.0,2430.9,0.41161]
[1730750200818,3.14680105,2431.0,2430.9,0.41161]
[1730750201321,1.0011,2431.0,2430.9,0.41161]
[1730750201618,1.0011,2431.0,2430.9,1.74557856]
[1730750201810,1.0011,2431.0,2430.9,2.23887856]
[1730750202012,1.0011,2431.0,2430.9,1.74557856]
[1730750202731,3.14680105,2431.0,2430.9,1.74557856]
[1730750203332,1.0011,2431.0,2430.9,1.74557856]
[1730750209832,1.41272,2431.0,2430.9,1.74557856]
[1730750210340,1.0011,2431.0,2430.9,1.74557856]
[1730750211036,3.55842105,2431.0,2430.9,1.74557856]
[1730750211237,1.41272,2431.0,2430.9,1.74557856]
[1730750211433,1.0011,2431.0,2430.9,1.74557856]
[1730750211640,3.55842105,2431.0,2430.9,1.74557856]
[1730750211843,1.41272,2431.0,2430.9,1.74557856]
[1730750212137,1.41272,2431.0,2430.8,3.2078]
[1730750212138,1.0011,2431.0,2430.8,3.2078]
[1730750212338,1.0011,2431.0,2430.9,1.33396856]
[1730750212339,1.41272,2431.0,2430.9,1.33396856]
[1730750212640,4.09419598,2431.0,2430.9,1.33396856]
[1730750212831,4.09419598,2431.0,2430.9,1.74559856]
[1730750213243,1.41272,2431.0,2430.9,1.74559856]
[1730750213543,4.09419598,2431.0,2430.9,1.74559856]
[1730750215643,1.41272,2431.0,2430.9,1.74559856]